bitfinex/quotes_BTCUSD_20250408
["timestamp","ask_amount","ask_price","bid_price","bid_amount"]
[1744119762765,0.012546,79706.0,79705.0,0.2302]
[1744119763100,0.05,79759.0,79717.0,0.012544]
[1744119763386,0.66103622,79760.0,79725.0,0.61794585]
[1744119763387,0.00029352,79726.0,79725.0,0.61794585]
[1744119763657,0.0001682,79760.0,79748.0,0.263328]
[1744119763924,0.0001682,79760.0,79748.0,0.2302]
[1744119764180,0.263358,79739.0,79738.0,0.2302]
[1744119764436,0.012539,79746.0,79740.0,0.00949784]
[1744119764680,0.263358,79739.0,79738.0,0.02328294]
[1744119764939,0.38961664,79739.0,79738.0,0.02328294]
[1744119765407,0.263445,79713.0,79705.0,0.002]
[1744119765644,0.26355,79681.0,79680.0,0.4144]
[1744119765887,0.012549,79687.0,79677.0,0.23016]
[1744119765888,0.012549,79685.0,79677.0,0.23016]
[1744119766120,0.0484,79706.0,79680.0,0.00943198]
[1744119766384,0.23016,79729.0,79689.0,0.012548]
[1744119766597,0.250989,79685.0,79680.0,0.23016]
[1744119766818,0.250974,79690.0,79680.0,0.23016]
[1744119767045,0.012547,79698.0,79683.0,0.012549]
[1744119767268,0.250942,79700.0,79680.0,0.23216]
[1744119767496,0.012546,79701.0,79688.0,0.01454085]
[1744119767716,0.34,79717.0,79693.0,0.012548]
[1744119767717,0.012545,79708.0,79693.0,0.012548]
[1744119767972,0.250947,79698.0,79685.0,0.250985]
[1744119768189,0.250961,79694.0,79686.0,0.27717606]
[1744119768415,0.250959,79694.0,79686.0,0.02619206]
[1744119768611,0.250958,79695.0,79686.0,0.01165121]
[1744119768886,0.66086802,79730.0,79692.0,0.376446]
[1744119769123,0.263411,79724.0,79715.0,0.250892]
[1744119769340,0.012542,79729.0,79718.0,0.263426]
[1744119769583,0.01254,79739.0,79728.0,0.25085]
[1744119769810,0.01254,79739.0,79716.0,0.34146634]
[1744119769811,0.263431,79717.0,79716.0,0.34146634]
[1744119770041,0.012544,79717.0,79716.0,0.34146634]
[1744119770265,0.012544,79717.0,79716.0,0.35311755]
[1744119770500,0.012543,79721.0,79716.0,0.35311755]
[1744119770501,0.250862,79726.0,79716.0,0.35324287]
[1744119770725,0.0484,79745.0,79718.0,0.01454085]
[1744119770726,0.012541,79733.0,79718.0,0.01454085]
[1744119770949,0.012543,79725.0,79716.0,0.35324287]
[1744119771176,0.250862,79727.0,79718.0,0.01454085]
[1744119771427,0.250882,79719.0,79716.0,0.34159166]
[1744119771664,0.01254,79743.0,79733.0,0.250837]
[1744119771891,0.01254,79740.0,79733.0,0.12625864]
[1744119772116,0.012541,79734.0,79733.0,0.01165653]
[1744119772345,0.52399964,79734.0,79733.0,5.3e-07]
[1744119772570,0.57239964,79734.0,79733.0,5.3e-07]
[1744119772805,0.263431,79717.0,79716.0,0.11343166]
[1744119773052,0.38968964,79717.0,79716.0,0.11343166]
[1744119773303,0.38968964,79717.0,79716.0,0.00212532]
[1744119773304,0.263431,79717.0,79716.0,0.00212532]
[1744119773532,0.263431,79717.0,79716.0,0.00012532]
[1744119774266,0.012547,79698.0,79697.0,0.11130634]
[1744119774486,0.263554,79680.0,79651.0,0.657154]
[1744119774700,0.38981264,79680.0,79651.0,0.657154]
[1744119774918,0.72981264,79680.0,79679.0,8e-07]
[1744119775130,0.263554,79680.0,79679.0,8e-07]
[1744119775369,0.38981264,79680.0,79679.0,8e-07]
[1744119775593,0.250993,79684.0,79679.0,8e-07]
[1744119775805,0.012546,79702.0,79688.0,0.012548]
[1744119776026,0.012548,79691.0,79683.0,0.01454085]
[1744119776243,0.012548,79691.0,79679.0,0.0135508]
[1744119776244,0.01255,79680.0,79679.0,0.0010008]
[1744119776470,0.35255,79680.0,79679.0,0.0010008]
[1744119776681,0.47880864,79680.0,79679.0,0.0010008]
[1744119776926,0.250978,79688.0,79679.0,0.0010008]
[1744119777139,0.250947,79699.0,79685.0,0.250986]
[1744119777351,0.012547,79700.0,79697.0,0.003]
[1744119777559,0.012547,79698.0,79697.0,0.003]
[1744119777797,0.263506,79694.0,79693.0,0.00934665]
[1744119778033,0.00012527,79704.0,79703.0,0.263477]
[1744119778268,0.00012527,79704.0,79694.0,0.01454085]
[1744119778510,0.00012527,79704.0,79703.0,0.40427649]
[1744119778738,2.7e-07,79704.0,79703.0,0.89427649]
[1744119778968,2.7e-07,79704.0,79703.0,1.30867649]
[1744119779198,2.7e-07,79704.0,79703.0,1.15867649]
[1744119779429,0.00100027,79704.0,79703.0,1.1913129]
[1744119779655,2.7e-07,79704.0,79703.0,0.9403819]
[1744119779880,0.012546,79706.0,79703.0,0.44703641]
[1744119780098,0.13153708,79704.0,79703.0,0.02331172]
[1744119780357,0.263474,79704.0,79703.0,0.02331172]
[1744119780616,0.66086802,79740.0,79705.0,0.012546]
[1744119780892,0.0478,79743.0,79736.0,0.250825]
[1744119781138,0.250866,79724.0,79722.0,0.99376]
[1744119781372,0.263409,79724.0,79723.0,0.22408]
[1744119781702,0.263409,79724.0,79705.0,0.263468]
[1744119781703,0.263474,79704.0,79703.0,0.22508]
[1744119781907,0.263474,79704.0,79703.0,0.61381564]
[1744119781908,0.001,79704.0,79703.0,0.61381564]
[1744119782140,0.250908,79711.0,79703.0,0.12625864]
[1744119782366,0.012544,79716.0,79706.0,0.263467]
[1744119782367,0.250891,79716.0,79706.0,0.263467]
[1744119782605,0.263474,79704.0,79703.0,0.22408]
[1744119783033,0.263474,79704.0,79703.0,0.22508]
[1744119783260,0.012548,79692.0,79691.0,0.22408]
[1744119783512,0.26355,79681.0,79679.0,8e-07]
[1744119783747,0.01255,79680.0,79679.0,8e-07]
[1744119784005,0.47880864,79680.0,79679.0,8e-07]
[1744119784292,0.012548,79690.0,79679.0,8e-07]
[1744119784557,0.01255,79680.0,79679.0,8e-07]
[1744119784791,0.47880864,79680.0,79679.0,0.00041901]
[1744119785020,0.263514,79693.0,79680.0,0.01255]
[1744119785271,0.001,79680.0,79679.0,0.22549901]
[1744119785540,0.012548,79690.0,79679.0,0.50610446]
[1744119785790,0.250957,79695.0,79684.0,0.012549]
[1744119785985,0.70866802,79710.0,79685.0,0.00250954]
[1744119785986,0.012547,79696.0,79685.0,0.00250954]
[1744119786193,0.250958,79695.0,79686.0,0.00250952]
[1744119786619,0.250958,79695.0,79685.0,0.263535]
[1744119786620,0.250961,79694.0,79685.0,0.263535]
[1744119786880,0.250964,79693.0,79685.0,0.250986]
[1744119787092,0.250964,79693.0,79684.0,0.250989]
[1744119787338,0.0478,79710.0,79690.0,0.012548]
[1744119787559,0.250951,79697.0,79691.0,0.4144]
[1744119787780,0.012545,79707.0,79696.0,0.012547]
[1744119787998,0.66086802,79740.0,79716.0,0.012544]
[1744119788249,0.012541,79736.0,79720.0,0.012543]
[1744119788481,0.298604,79744.0,79722.0,0.012543]
[1744119788744,0.012539,79747.0,79728.0,0.263392]
[1744119788969,0.250779,79752.0,79735.0,0.012541]
[1744119789212,0.250811,79742.0,79736.0,0.42894085]
[1744119789471,0.01254,79741.0,79736.0,0.42894085]
[1744119789667,0.263354,79741.0,79736.0,0.42894085]
[1744119789943,0.250817,79740.0,79736.0,0.42894085]
[1744119790168,0.250804,79744.0,79736.0,0.42894085]
[1744119790408,0.0001682,79760.0,79742.0,0.01254]
[1744119790647,0.0001682,79760.0,79748.0,0.012539]
[1744119790876,0.0001682,79760.0,79748.0,0.02958736]
[1744119791111,0.250928,79758.0,79748.0,1.02354736]
[1744119791342,0.26745041,79749.0,79748.0,0.99396]
[1744119791571,0.00412541,79749.0,79748.0,0.99396]
[1744119792268,0.00412541,79749.0,79748.0,1.27582885]
[1744119792517,0.00412541,79749.0,79748.0,1.01250085]
[1744119792755,0.25691141,79749.0,79748.0,0.99796]
[1744119792981,0.26745041,79749.0,79748.0,0.99796]
[1744119793211,0.26845041,79749.0,79748.0,0.99796]
[1744119793443,0.263388,79730.0,79729.0,0.4144]
[1744119793668,0.012544,79714.0,79711.0,0.22408]
[1744119793896,0.050168,79758.0,79720.0,0.012543]
[1744119794125,0.012542,79728.0,79721.0,0.4144]
[1744119794359,0.012542,79731.0,79722.0,0.012543]
[1744119794645,0.0454679,79767.0,79747.0,0.012539]
[1744119794867,0.0001679,79767.0,79748.0,1.37113849]
[1744119795102,0.250757,79759.0,79748.0,1.78553849]
[1744119795344,0.26845041,79749.0,79748.0,0.4144]
[1744119795572,0.263365,79737.0,79736.0,0.22408]
[1744119796081,0.01254,79743.0,79736.0,0.22408]
[1744119796335,0.250804,79744.0,79736.0,0.22408]
[1744119796581,0.2508,79745.0,79737.0,0.00250791]
[1744119796846,0.250817,79740.0,79736.0,0.2336557]
[1744119797046,0.012538,79753.0,79738.0,0.13879964]
[1744119797329,0.012538,79757.0,79746.0,0.012539]
[1744119797571,0.250772,79754.0,79748.0,0.006]
[1744119797811,0.01666441,79749.0,79748.0,0.006]
[1744119798060,0.00412541,79749.0,79748.0,0.426939]
[1744119798323,0.00412541,79749.0,79748.0,0.55519949]
[1744119798577,0.00412541,79749.0,79748.0,0.67972985]
[1744119798845,0.00412541,79749.0,79748.0,0.81852749]
[1744119799103,0.000168,79758.0,79757.0,0.69223944]
[1744119799347,0.000168,79758.0,79757.0,2.03617808]
[1744119799873,2e-07,79760.0,79759.0,0.603292]
[1744119800117,2e-07,79760.0,79759.0,0.74409149]
[1744119800362,2e-07,79760.0,79759.0,0.76735671]
[1744119800834,2e-07,79760.0,79759.0,0.77897799]
[1744119801068,1e-07,79767.0,79766.0,0.753269]
[1744119801312,1e-07,79767.0,79766.0,0.89406849]
[1744119801534,0.000168,79771.0,79770.0,0.61779685]
[1744119801793,5e-07,79779.0,79778.0,0.155]
[1744119802048,0.00041829,79779.0,79778.0,0.77802849]
[1744119802302,0.00041829,79779.0,79778.0,0.78749965]
[1744119802543,0.26364429,79779.0,79778.0,0.40915715]
[1744119802758,0.00041829,79779.0,79778.0,0.42169115]
[1744119803469,0.00041829,79779.0,79778.0,0.40742593]
[1744119803710,0.00041829,79779.0,79778.0,0.38680465]
[1744119803971,0.00041829,79779.0,79778.0,0.72680465]
[1744119804199,0.0001683,79800.0,79799.0,0.26316]
[1744119804430,0.00029359,79800.0,79799.0,1.62111949]
[1744119805181,8e-05,79825.0,79824.0,0.27761885]
[1744119805392,3e-07,79829.0,79828.0,0.76760485]
[1744119805619,3e-07,79829.0,79828.0,0.89386349]
[1744119805848,5.4e-07,79829.0,79828.0,0.89386349]
[1744119806301,5.4e-07,79829.0,79828.0,0.89886349]
[1744119806529,5.4e-07,79829.0,79828.0,0.89386349]
[1744119806967,5.4e-07,79829.0,79828.0,0.89986349]
[1744119807180,0.04,79846.0,79838.0,0.753032]
[1744119807394,0.04,79846.0,79838.0,1.88667149]
[1744119807618,1e-06,79846.0,79845.0,0.263009]
[1744119807847,0.0001682,79859.0,79858.0,0.262966]
[1744119808060,0.0001682,79859.0,79858.0,0.74376549]
[1744119808274,0.00058558,79859.0,79858.0,0.74376549]
[1744119808723,0.00058558,79859.0,79858.0,0.14079949]
[1744119808944,0.00058558,79859.0,79838.0,1.00184]
[1744119808945,0.250472,79851.0,79838.0,1.00184]
[1744119809228,0.012522,79857.0,79846.0,0.263006]
[1744119809463,0.012523,79850.0,79843.0,0.012524]
[1744119809704,0.250469,79851.0,79847.0,0.22228]
[1744119809939,0.262994,79850.0,79847.0,0.22228]
[1744119810169,0.012522,79857.0,79846.0,0.00951606]
[1744119810396,0.00058558,79859.0,79848.0,0.2222]
[1744119810633,0.01310758,79859.0,79858.0,0.005]
[1744119810863,0.01310758,79859.0,79858.0,0.014]
[1744119810864,0.00058558,79859.0,79858.0,0.014]
[1744119811315,0.00058558,79859.0,79858.0,0.005]
[1744119811550,0.00058558,79859.0,79858.0,0.03206285]
[1744119811788,0.004,79869.0,79868.0,0.262933]
[1744119812019,0.00412516,79869.0,79868.0,0.63601442]
[1744119812251,0.26705516,79869.0,79868.0,0.63601442]
[1744119812730,0.26705516,79869.0,79868.0,0.41381442]
[1744119812957,0.7333138,79869.0,79868.0,0.41381442]
[1744119813401,0.262963,79859.0,79858.0,0.002]
[1744119813876,0.250479,79847.0,79845.0,0.22216]
[1744119814096,0.012521,79861.0,79846.0,4.2e-07]
[1744119814352,0.05302516,79869.0,79861.0,0.250431]
[1744119814581,0.00412516,79869.0,79868.0,0.27747385]
[1744119814821,0.00412516,79869.0,79868.0,0.23670085]
[1744119815069,0.26905516,79869.0,79868.0,0.22316]
[1744119815318,0.26705516,79869.0,79868.0,0.22216]
[1744119815544,0.262949,79863.0,79862.0,4.2e-07]
[1744119815775,0.00412516,79869.0,79862.0,0.01454127]
[1744119815987,0.01252,79868.0,79862.0,0.01454127]
[1744119816203,0.00612516,79869.0,79864.0,0.01454085]
[1744119816412,0.00612516,79869.0,79863.0,0.01454085]
[1744119816597,0.00412516,79869.0,79863.0,0.26496785]
[1744119816843,0.012519,79877.0,79863.0,0.02706185]
[1744119817070,0.012517,79887.0,79875.0,0.012519]
[1744119817258,0.262915,79874.0,79865.0,0.26496285]
[1744119817510,0.003,79869.0,79867.0,0.01454085]
[1744119817832,0.250399,79873.0,79864.0,4.2e-07]
[1744119817833,0.01252,79867.0,79864.0,4.2e-07]
[1744119818034,0.012521,79865.0,79864.0,4.2e-07]
[1744119818266,0.250393,79875.0,79864.0,4.2e-07]
[1744119818466,0.012519,79874.0,79864.0,4.2e-07]
[1744119818677,0.250402,79872.0,79864.0,0.25042442]
[1744119818882,0.01252,79868.0,79864.0,4.2e-07]
[1744119819097,0.262972,79856.0,79849.0,4.2e-07]
[1744119819314,0.012519,79874.0,79860.0,0.012521]
[1744119819545,0.250331,79895.0,79876.0,0.250386]
[1744119819760,0.012517,79885.0,79874.0,0.250387]
[1744119819960,0.250376,79880.0,79877.0,0.22212]
[1744119820217,0.012517,79885.0,79877.0,0.23666127]
[1744119820444,0.0457,79892.0,79877.0,0.37794242]
[1744119820685,0.0126869,79878.0,79877.0,0.22212042]
[1744119820898,0.47894554,79878.0,79877.0,4.2e-07]
[1744119821116,0.250403,79872.0,79865.0,0.0095508]
[1744119821361,0.001,79868.0,79865.0,0.250418]
[1744119821559,0.012519,79873.0,79862.0,0.262952]
[1744119821782,0.0001679,79878.0,79863.0,0.02956578]
[1744119822019,0.0001679,79878.0,79877.0,0.26492485]
[1744119822228,0.0001679,79878.0,79877.0,0.36955891]
[1744119822451,0.0001679,79878.0,79877.0,0.35703991]
[1744119822905,0.0001679,79878.0,79877.0,0.36955891]
[1744119823134,0.0021679,79878.0,79877.0,0.36955891]
[1744119824869,0.00316748,79878.0,79877.0,0.36955849]
[1744119825529,4.8e-07,79878.0,79877.0,0.70955849]
[1744119825994,4.8e-07,79878.0,79877.0,0.85955849]
[1744119826424,0.0001679,79901.0,79897.0,0.01454085]
[1744119826661,0.0001679,79901.0,79898.0,0.78391449]
[1744119827345,0.0001679,79901.0,79898.0,0.77139949]
[1744119827559,0.254316,79899.0,79898.0,0.77139949]
[1744119827781,0.00412512,79899.0,79898.0,0.77139949]
[1744119828012,0.01664012,79899.0,79898.0,0.64001015]
[1744119828221,0.00412512,79899.0,79898.0,0.77878379]
[1744119828446,0.00412512,79899.0,79898.0,0.78080964]
[1744119828677,0.00412512,79899.0,79898.0,0.64001015]
[1744119828884,0.00412512,79899.0,79898.0,0.78080964]
[1744119829094,0.00412512,79899.0,79898.0,0.64001015]
[1744119829305,0.01664012,79899.0,79898.0,0.64001015]
[1744119829744,0.00412512,79899.0,79898.0,0.64001015]
[1744119829973,0.00412512,79899.0,79898.0,0.79332464]
[1744119830188,0.00412512,79899.0,79898.0,0.56460964]
[1744119830404,0.01664012,79899.0,79898.0,0.63997015]
[1744119830609,0.00412512,79899.0,79898.0,0.63997015]
[1744119831269,0.00412512,79899.0,79898.0,0.78076964]
[1744119831479,0.00412512,79899.0,79898.0,1.04360364]
[1744119831691,0.00412512,79899.0,79898.0,1.05288273]
[1744119831914,0.00412512,79899.0,79898.0,1.07608056]
[1744119832370,0.00412512,79899.0,79898.0,0.67770883]
[1744119832821,0.00412512,79899.0,79898.0,0.81648247]
[1744119833310,0.00412512,79899.0,79898.0,0.82577991]
[1744119833520,0.00412512,79899.0,79898.0,1.07609891]
[1744119834248,0.00412512,79899.0,79898.0,0.81326491]
[1744119834465,0.00412512,79899.0,79898.0,0.80396747]
[1744119834669,0.00412512,79899.0,79898.0,0.67770883]
[1744119834833,0.26695612,79899.0,79898.0,0.66316798]
[1744119835257,0.00412512,79899.0,79898.0,0.66316798]
[1744119835467,0.00412512,79899.0,79898.0,0.92600198]
[1744119835706,0.00412512,79899.0,79898.0,1.07611199]
[1744119836620,2e-08,79901.0,79900.0,0.262827]
[1744119836851,2e-08,79901.0,79900.0,1.80946649]
[1744119837073,2e-08,79901.0,79900.0,1.84197484]
[1744119837512,2e-08,79901.0,79900.0,1.57914784]
[1744119837756,0.01251502,79901.0,79900.0,1.43834835]
[1744119837973,0.25030902,79901.0,79900.0,1.42903783]
[1744119838203,0.82318266,79901.0,79900.0,0.03019783]
[1744119838426,0.82318266,79901.0,79900.0,0.007]
[1744119838646,0.82318266,79901.0,79856.0,0.01266916]
[1744119838647,0.262936,79867.0,79866.0,0.4144]
[1744119838873,0.262936,79867.0,79852.0,0.99144]
[1744119838874,0.25046,79853.0,79852.0,0.99144]
[1744119839089,0.262983,79853.0,79852.0,0.99144]
[1744119839310,0.0485,79867.0,79852.0,0.99144]
[1744119839525,0.0456,79887.0,79886.0,0.250356]
[1744119839751,0.25042,79866.0,79859.0,0.250439]
[1744119839981,0.012518,79880.0,79866.0,0.01252]
[1744119840228,0.012518,79879.0,79867.0,0.11443198]
[1744119840446,0.01252,79868.0,79867.0,0.11192811]
[1744119840678,0.66086802,79880.0,79867.0,0.11192811]
[1744119840905,1.26248715,80003.0,79867.0,0.11192811]
[1744119840906,0.250329,79895.0,79881.0,0.012518]
[1744119841158,0.005,79918.0,79871.0,0.01454085]
[1744119841159,0.250382,79878.0,79871.0,0.01454085]
[1744119841373,0.012517,79889.0,79873.0,0.012519]
[1744119841596,0.012517,79889.0,79870.0,0.262926]
[1744119841597,0.0485,79909.0,79879.0,0.01454085]
[1744119841817,0.0485,79909.0,79888.0,0.012517]
[1744119841818,0.01251502,79901.0,79888.0,0.012517]
[1744119842016,0.01251502,79901.0,79889.0,0.40366249]
[1744119842279,0.012515,79899.0,79890.0,0.012517]
[1744119842508,0.250322,79897.0,79890.0,0.250342]
[1744119842723,2e-08,79901.0,79893.0,0.012516]
[1744119842945,2e-08,79901.0,79900.0,0.250312]
[1744119843165,2e-08,79901.0,79900.0,0.63052]
[1744119843411,0.01251502,79901.0,79900.0,0.4144]
[1744119843636,0.01251502,79901.0,79900.0,0.63052]
[1744119844083,2e-08,79901.0,79900.0,0.63979043]
[1744119844307,2e-08,79901.0,79900.0,0.79310492]
[1744119844546,2e-08,79901.0,79900.0,0.80474847]
[1744119844768,0.01251502,79901.0,79900.0,0.65143398]
[1744119844987,2e-08,79901.0,79900.0,0.43548675]
[1744119845218,0.01251502,79901.0,79900.0,0.43548675]
[1744119845458,0.01251502,79901.0,79900.0,0.4238432]
[1744119845676,0.01451502,79901.0,79900.0,0.4238432]
[1744119845902,2e-08,79901.0,79900.0,0.56261684]
[1744119846116,2e-08,79901.0,79900.0,0.57715769]
[1744119846584,0.00200002,79901.0,79900.0,0.57715769]
[1744119846810,0.01451502,79901.0,79900.0,0.4238432]
[1744119847792,0.14077366,79901.0,79900.0,0.4144]
[1744119848013,0.012518,79879.0,79878.0,0.4144]
[1744119848237,0.250406,79871.0,79864.0,0.664823]
[1744119848481,0.01252,79871.0,79864.0,0.4144]
[1744119848705,0.250398,79873.0,79866.0,0.250418]
[1744119848933,0.012515,79900.0,79888.0,0.012517]
[1744119849158,0.35251502,79901.0,79900.0,0.001]
[1744119849676,0.48277366,79901.0,79900.0,0.001]
[1744119849890,0.262864,79889.0,79888.0,0.4144]
[1744119850111,0.72912264,79889.0,79888.0,0.4144]
[1744119850337,0.72912264,79889.0,79888.0,0.00012512]
[1744119850781,0.34,79889.0,79888.0,0.00012512]
[1744119851037,0.012517,79889.0,79888.0,0.00012512]
[1744119851277,0.47877564,79889.0,79888.0,0.00012512]
[1744119851502,0.012515,79899.0,79891.0,0.250338]
[1744119851710,0.012516,79893.0,79888.0,0.00012512]
[1744119851927,0.003,79889.0,79888.0,0.00012512]
[1744119852399,0.34,79898.0,79888.0,0.01264212]
[1744119852600,0.256347,79889.0,79888.0,0.00012512]
[1744119852810,0.001,79889.0,79888.0,0.00012512]
[1744119853021,0.001,79889.0,79888.0,0.26299212]
[1744119853444,0.001,79889.0,79888.0,0.25047512]
[1744119853877,0.001,79889.0,79888.0,0.26299212]
[1744119854115,2e-08,79901.0,79894.0,0.012516]
[1744119854331,0.012516,79892.0,79888.0,0.00112512]
[1744119854547,0.240341,79891.0,79888.0,0.00512512]
[1744119854778,0.250336,79893.0,79888.0,0.00512512]
[1744119855000,0.250323,79897.0,79891.0,0.012517]
[1744119855188,0.250323,79897.0,79888.0,0.01364212]
[1744119855189,0.012516,79896.0,79888.0,0.00012512]
[1744119855409,0.012516,79894.0,79888.0,0.25047412]
[1744119855630,0.250347,79889.0,79888.0,0.00012512]
[1744119855850,0.262864,79889.0,79888.0,0.00012512]
[1744119856512,0.602864,79889.0,79888.0,0.00012512]
[1744119856933,0.649664,79889.0,79888.0,0.00012512]
[1744119857144,0.77592264,79889.0,79888.0,0.00012512]
[1744119857400,0.77592264,79889.0,79841.0,0.016524]
[1744119857401,0.262972,79856.0,79841.0,0.016524]
[1744119857609,0.262975,79855.0,79848.0,0.21032]
[1744119857824,0.262975,79855.0,79854.0,0.00945396]
[1744119858486,0.012519,79874.0,79858.0,0.012522]
[1744119858748,0.012522,79858.0,79854.0,0.01445396]
[1744119858947,0.263975,79855.0,79854.0,0.01445396]
[1744119859156,0.263975,79855.0,79854.0,0.00012516]
[1744119859366,0.73023364,79855.0,79854.0,0.00012516]
[1744119859571,0.603975,79855.0,79854.0,0.00112516]
[1744119859781,0.603975,79855.0,79854.0,0.25158216]
[1744119859782,0.001,79855.0,79854.0,0.25158216]
[1744119859992,0.001,79855.0,79854.0,0.00112516]
[1744119860209,0.47978064,79855.0,79854.0,0.00112516]
[1744119860412,0.47878064,79855.0,79854.0,1.6e-07]
[1744119860661,0.47878064,79855.0,79846.0,0.11192811]
[1744119860878,0.47878064,79855.0,79845.0,0.0003366]
[1744119860879,0.012524,79846.0,79845.0,0.0003366]
[1744119861082,0.00412495,79855.0,79848.0,0.250473]
[1744119861298,0.25046,79853.0,79846.0,0.263003]
[1744119861516,0.00612495,79855.0,79854.0,0.263979]
[1744119861741,0.00012495,79855.0,79854.0,0.460817]
[1744119861979,0.00012495,79855.0,79854.0,0.21036]
[1744119862203,0.262998,79848.0,79840.0,0.21036]
[1744119862429,0.263006,79846.0,79829.0,0.62476]
[1744119862648,0.38926464,79846.0,79829.0,0.62476]
[1744119862856,0.77756464,79846.0,79829.0,0.4144]
[1744119864400,0.77756464,79846.0,79845.0,0.0013366]
[1744119864401,0.78656464,79846.0,79845.0,0.0013366]
[1744119864666,0.78656464,79846.0,79845.0,0.0003366]
[1744119864667,0.77756464,79846.0,79845.0,0.0003366]
[1744119864892,0.78656464,79846.0,79845.0,0.0013366]
[1744119865769,0.79456464,79846.0,79845.0,0.0023366]
[1744119866260,0.017,79846.0,79845.0,0.0023366]
[1744119866493,0.15578264,79846.0,79845.0,0.0023366]
[1744119866716,0.357,79846.0,79845.0,0.0023366]
[1744119866937,0.369524,79846.0,79845.0,0.0023366]
[1744119867377,0.360524,79846.0,79845.0,0.0013366]
[1744119867604,0.366524,79846.0,79845.0,0.0023366]
[1744119867838,0.358524,79846.0,79845.0,0.0013366]
[1744119868040,0.48878264,79846.0,79845.0,6e-07]
[1744119868250,0.48878264,79846.0,79824.0,0.2104]
[1744119868251,0.263075,79825.0,79824.0,0.2104]
[1744119869091,0.250546,79826.0,79824.0,0.2104]
[1744119869305,0.263073,79826.0,79824.0,0.2104]
[1744119869739,0.012527,79825.0,79824.0,0.21081738]
[1744119869965,0.012525,79834.0,79826.0,0.250542]
[1744119870172,0.012525,79840.0,79830.0,0.012526]
[1744119870388,0.018,79846.0,79840.0,0.012525]
[1744119870599,0.263019,79842.0,79834.0,0.012525]
[1744119870810,0.250504,79839.0,79833.0,0.012526]
[1744119871046,0.66086802,79870.0,79847.0,0.012523]
[1744119871259,0.046,79881.0,79877.0,0.012519]
[1744119871552,0.00711687,79881.0,79874.0,0.20452]
[1744119871794,0.250379,79879.0,79874.0,0.20452]
[1744119872002,0.26291,79875.0,79874.0,0.20452]
[1744119872856,0.263035,79875.0,79874.0,0.20452]
[1744119873072,0.000125,79875.0,79874.0,0.20452]
[1744119873283,0.012644,79875.0,79874.0,0.20452]
[1744119873499,0.012521,79862.0,79861.0,1.19664]
[1744119873711,0.250427,79864.0,79861.0,1.19664]
[1744119873963,0.250423,79865.0,79861.0,1.20614818]
[1744119874196,0.016644,79875.0,79863.0,0.262948]
[1744119874431,0.250414,79868.0,79862.0,0.25043]
[1744119874651,0.250417,79867.0,79862.0,0.25043]
[1744119874876,0.012521,79862.0,79861.0,1.21014818]
[1744119875364,0.47877964,79862.0,79861.0,0.001]
[1744119875600,0.263048,79833.0,79832.0,0.20448]
[1744119875826,0.263048,79833.0,79822.0,0.0003366]
[1744119875827,0.263081,79823.0,79822.0,0.0003366]
[1744119876292,0.263081,79823.0,79805.0,0.25061]
[1744119876293,0.603111,79814.0,79797.0,0.0003358]
[1744119876523,0.352531,79797.0,79796.0,3.1e-07]
[1744119876756,0.263183,79792.0,79791.0,1.1e-07]
[1744119876987,0.603217,79782.0,79781.0,9.1e-07]
[1744119877217,0.72947564,79782.0,79781.0,9.1e-07]
[1744119877485,0.76740002,79791.0,79781.0,9.1e-07]
[1744119877486,0.058532,79791.0,79781.0,9.1e-07]
[1744119877713,0.250682,79783.0,79781.0,9.1e-07]
[1744119877990,0.012534,79782.0,79781.0,9.1e-07]
[1744119878217,0.250675,79785.0,79781.0,0.00041829]
[1744119878445,0.006,79782.0,79781.0,0.00175409]
[1744119878895,0.263217,79782.0,79781.0,0.00075409]
[1744119879125,0.34,79783.0,79781.0,0.00075409]
[1744119879321,0.046,79809.0,79782.0,0.012534]
[1744119879322,0.250652,79792.0,79782.0,0.012534]
[1744119879620,0.012532,79791.0,79781.0,0.01328809]
[1744119879852,0.01253,79806.0,79795.0,0.012532]
[1744119880073,0.012529,79810.0,79796.0,0.20452]
[1744119880300,0.012531,79797.0,79796.0,0.20452]
[1744119880517,0.012531,79797.0,79781.0,0.00995788]
[1744119880518,0.263217,79782.0,79781.0,0.00995788]
[1744119880735,0.012532,79793.0,79781.0,0.21447788]
[1744119880957,0.250666,79788.0,79781.0,0.21447788]
[1744119881188,0.250609,79806.0,79797.0,0.012531]
[1744119881437,0.046,79827.0,79797.0,0.12625864]
[1744119881653,0.046,79827.0,79781.0,0.21447788]
[1744119881654,0.66086802,79810.0,79782.0,0.02317984]
[1744119881911,0.012531,79796.0,79788.0,0.012533]
[1744119882142,0.263171,79796.0,79786.0,0.012533]
[1744119882400,0.012533,79784.0,79781.0,0.21847788]
[1744119882671,0.603217,79782.0,79781.0,0.00475409]
[1744119883160,0.72947564,79782.0,79781.0,0.00475409]
[1744119883403,0.72947564,79782.0,79781.0,0.00075409]
[1744119883404,0.69695997,79782.0,79781.0,0.00075409]
[1744119884917,0.69695997,79782.0,79781.0,0.00475409]
[1744119885353,0.263217,79782.0,79781.0,0.00475409]
[1744119885631,0.34,79783.0,79781.0,0.00475409]
[1744119885857,0.012534,79782.0,79781.0,0.00575409]
[1744119886535,0.13879264,79782.0,79781.0,0.00175409]
[1744119886756,0.012534,79782.0,79781.0,0.00175409]
[1744119887001,0.012534,79782.0,79781.0,0.00475409]
[1744119887248,0.13879264,79782.0,79781.0,0.00475409]
[1744119887492,0.60324,79775.0,79774.0,8.9e-07]
[1744119887743,0.72949864,79775.0,79774.0,0.00012613]
[1744119888757,0.603315,79752.0,79751.0,1e-06]
[1744119888991,0.72957364,79752.0,79751.0,1e-06]
[1744119889211,0.34,79752.0,79751.0,0.00041879]
[1744119889682,0.012537,79760.0,79751.0,0.00041879]
[1744119889926,0.012537,79758.0,79751.0,0.00041879]
[1744119890193,0.006,79752.0,79751.0,0.01295779]
[1744119890433,0.006,79752.0,79751.0,0.45583879]
[1744119890671,0.006,79752.0,79751.0,0.60917728]
[1744119890672,0.009,79752.0,79751.0,0.60917728]
[1744119891142,0.250724,79769.0,79762.0,0.250743]
[1744119891385,0.547387,79795.0,79761.0,0.012537]
[1744119891386,0.250713,79773.0,79766.0,0.012536]
[1744119891608,0.004,79775.0,79773.0,0.263245]